Cogmind - Beta 12 @@@ ROGUE MODE // 2023.04.11 @ 08:35:23 Player: Exp. Geonium Core Result: Destroyed by 8R-AWN with 8R-AWN's Boregun Performance ------------- Evolutions (0) 0 Regions Visited (3) 600 Robots Destroyed (29) 145 Value Destroyed (549) 549 Prototype IDs (26) 520 Alien Tech Used (0) 0 Bonus (300) 300 TOTAL SCORE: 2114 Bonus ------- Aligned with FarCom 300 Cogmind --------- Core Integrity 0/250 Matter 265/300 Energy 170/170 System Corruption 3% Temperature Cool (0) Movement Treading (480) Ox4 Location -10/Exiles Parts ------- > --- POWER (1) -------- Makeshift Power Source > --- PROPULSION (2) --- Improved Treads Improved Treads > --- UTILITY (2) ------ Humpback > --- WEAPON (2) ------- Axe > --- INVENTORY (35) --- Improved Treads Hardened Medium Armor Plating Plasma Cutter Peak State ------------ > --- POWER ------------ Makeshift Power Source > --- PROPULSION ------- Improved Treads Improved Treads > --- UTILITY ---------- Heat Sink Large Storage Unit > --- WEAPON ----------- Light Assault Rifle Mace > --- INVENTORY -------- Light Ion Engine Improved Ion Engine Light Treads Improved Treads Improved Treads Transport Network Coupler Targeting Computer Hardened Medium Armor Plating Hacking Suite Improved Trap Extractor Light Assault Rifle Plasma Cutter Plasma Cutter Plasma Cutter Axe [Rating: 16] Favorites ----------- Power Improved Ion Engine Engine Improved Ion Engine Propulsion Improved Treads Treads Improved Treads Leg Aluminum Leg Utility Large Storage Unit Device Heat Sink Storage Large Storage Unit Processor Targeting Computer Weapon Light Assault Rifle Energy Gun Small Laser Ballistic Gun Light Assault Rifle Impact Weapon Mace Slashing Weapon Axe Build | -11 -10 -10 -10 ------- Run | Jun Mat Min Exi Slots Evolved . | . . . . Power . | . . . . Propulsion . | . . . . Utility . | . . . . Weapon . | . . . . Parts Attached 24 | . 12 5 7 Power 4 | . 2 1 1 Engine 4 | . 2 1 1 Core . | . . . . Reactor . | . . . . Propulsion 6 | . 4 1 1 Treads 6 | . 4 1 1 Leg . | . . . . Wheel . | . . . . Hover . | . . . . Flight . | . . . . Utility 5 | . 3 . 2 Device 1 | . 1 . . Storage 3 | . 1 . 2 Processor 1 | . 1 . . Hackware . | . . . . Protection . | . . . . Artifact . | . . . . Weapon 9 | . 3 3 3 Energy Gun 2 | . 2 . . Energy Cannon . | . . . . Ballistic Gun 3 | . 1 2 . Ballistic Cannon . | . . . . Launcher . | . . . . Special Weapon . | . . . . Impact Weapon 3 | . . 1 2 Slashing Weapon 1 | . . . 1 Piercing Weapon . | . . . . Special Melee Weapon . | . . . . Unidentified Prototypes . | . . . . Corrupted Parts 1 | . . . 1 System Corruption 3 | . . . 3 Parts Lost 4 | . 4 . . Power . | . . . . Propulsion 1 | . 1 . . Utility 1 | . 1 . . Weapon 2 | . 2 . . Highest Loss Streak 3 | . 3 . . To Critical Strikes . | . . . . Average Slot Usage (%) 95 | . 98 99 83 Engine 13 | . 14 14 11 Treads 21 | . 15 27 28 Leg 6 | . 12 . . Device 9 | . 7 14 9 Storage 13 | . 14 14 10 Processor 2 | . 4 . . Energy Gun 15 | . 25 10 . Ballistic Gun 7 | . 2 15 9 Impact Weapon 2 | . . 2 9 Slashing Weapon 1 | . . . 4 Naked Turns . | . . . . Heaviest Build 207 | 11 32 32 207 Greatest Support 46 | 20 46 46 46 Greatest Overweight (x) 4 | . 2 1 4 Average Overweight (x) . | . . . . Largest Inventory Capacity 35 | . 15 15 35 Average Capacity 14 | . 13 15 13 Most Carried 15 | . 15 15 15 Average Carried 12 | . 12 14 10 Final Capacity 35 | 8 15 15 35 Final Carried 15 | 6 15 15 3 Class Distribution -------------------- 97% | Mutant Dominant Class ---------------- Mutant | -10/Materials Mutant | -10/Mines Mutant | -10/Exiles Resources | -11 -10 -10 -10 ----------- Run | Jun Mat Min Exi Matter Collected 385 | 200 90 56 39 Remotely . | . . . . Salvage Created 792 | . 596 165 31 Parts 54 | . 39 15 . Haulers Intercepted 1 | . 1 . . Recyclers Shooed 2 | . 2 . . Parts Field Recycled . | . . . . Retrieved Matter . | . . . . Parts Self-Destructed . | . . . . Prevented . | . . . . Kills | -11 -10 -10 -10 ------- Run | Jun Mat Min Exi Combat Hostiles Destroyed 22 | . 14 6 2 Melee 4 | . . 2 2 Guns 17 | . 14 3 . Classes Destroyed 9 | . 7 2 . Worker 1 | . 1 . . Builder 2 | . . 2 . Hauler 1 | . 1 . . Mechanic 1 | . 1 . . Operator 3 | . 3 . . Watcher 2 | . 2 . . Swarmer 9 | . 6 3 . Grunt 10 | . 8 2 . Assembled 3 | . . 1 2 Best Kill Streak 6 | . 6 3 2 Combat Bots Only 6 | . 6 3 2 Max Kills in Single Turn 1 | . 1 1 1 Gunslinging . | . . . . Exploded . | . . . . Melee 1 | . . 1 1 Uniques/NPCs Destroyed . | . . . . Combat | -11 -10 -10 -10 -------- Run | Jun Mat Min Exi Damage Taken 1343 | . 647 129 567 Core 264 | . 131 11 122 Absorbed by Shields . | . . . . Core Remaining (%) 100 | 100 . . . Volleys Fired 80 | . 74 6 . Largest 2 | . 2 2 . Hottest 105 | . 105 85 . Shots Fired 148 | . 136 12 . Gun 148 | . 136 12 . Cannon . | . . . . Launcher . | . . . . Special . | . . . . Kinetic 10 | . 1 9 . Thermal 124 | . 121 3 . Explosive . | . . . . Electromagnetic 14 | . 14 . . Robot Hit Streak 15 | . 15 3 . Robot Miss Streak 5 | . 5 3 . Penetration Max . | . . . . Secondary Targets 4 | . 4 . . Max Gunslinging Chain 1 | . 1 . . Shots Hit Robots 109 | . 88 10 11 Core Hits 49 | . 40 8 1 Critical Kills . | . . . . Critical Parts Destroyed . | . . . . Critical Strikes 3 | . 3 . . Burn 3 | . 3 . . Melee Attacks 38 | . . 19 19 Impact 19 | . . 19 . Slashing 19 | . . . 19 Piercing . | . . . . Sneak Attacks 1 | . . 1 . Combat Hostiles . | . . . . Follow-up Attacks . | . . . . Damage Inflicted 1969 | . 1196 356 417 Guns 1185 | . 1106 79 . Cannons . | . . . . Explosions . | . . . . Melee 660 | . . 244 416 Ramming 124 | . 90 33 1 Kinetic 57 | . 8 49 . Thermal 989 | . 959 30 . Explosive . | . . . . Electromagnetic 139 | . 139 . . Impact 244 | . . 244 . Slashing 416 | . . . 416 Piercing . | . . . . Highest Corruption 3 | . . . 3 Average Corruption 3 | . . . 3 Corruption Purged . | . . . . Corruption Blocked . | . . . . Effects 5 | . . . 5 Message Errors 2 | . . . 2 Matter Fused 1 | . . . 1 Heat Flow Errors 2 | . . . 2 Overload Shots . | . . . . Overflow Damage 104 | . . 62 42 Projectiles . | . . . . Explosions . | . . . . Melee 104 | . . 62 42 Knockbacks 2 | . . 1 1 Impact 2 | . . 1 1 Kinetic . | . . . . Secondary . | . . . . Self-Inflicted Damage . | . . . . Shots . | . . . . Rammed 14 | . 10 3 1 Targets Rammed 27 | . 23 3 1 Kicked 12 | . 12 . . Crushed 1 | . 1 . . Highest Temperature 244 | . 228 26 244 Average Temperature 56 | . 52 19 110 Received Heat Transfer 339 | . 309 30 . Siege Activations . | . . . . Robots Corrupted . | . . . . Combat Hostiles . | . . . . Parts Fried 1 | . . 1 . Impact Corruptions 3 | . . 3 . Robots Melted . | . . . . Combat Hostiles . | . . . . Parts Melted 2 | . 2 . . Heat Transferred 2474 | . 2400 74 . Parts Sabotaged . | . . . . Parts Stolen . | . . . . Parts Stripped . | . . . . Power Chain Reactions . | . . . . Missiles Intercepted . | . . . . Alert | -11 -10 -10 -10 ------- Run | Jun Mat Min Exi Peak Influence 167 | . 167 140 . Initial 64 | . . 64 . Average 74 | . 83 60 . Maximum Alert Level . | . . . . Low Security (%) 100 | . 100 100 . Level 1 . | . . . . Level 2 . | . . . . Level 3 . | . . . . Level 4 . | . . . . Level 5 . | . . . . High Security . | . . . . Max Security . | . . . . Squads Dispatched 3 | . 3 . . Investigation 1 | . 1 . . Extermination . | . . . . Reinforcement 2 | . 2 . . Assault . | . . . . Garrison . | . . . . Intercept . | . . . . Searches Triggered . | . . . . Construction Impeded . | . . . . Haulers Reinforced . | . . . . Active Scanning Responses . | . . . . Cargo Convoy Interrupts . | . . . . Stealth | -11 -10 -10 -10 --------- Run | Jun Mat Min Exi Distress Signals 2 | . 1 1 . Communications Jammed . | . . . . Distress Signals . | . . . . Times Spotted 53 | . 41 6 6 Peak Tracking Total 12 | . 5 2 12 Tactical Retreats 2 | . . . 2 Traps | -11 -10 -10 -10 ------- Run | Jun Mat Min Exi Traps Triggered 1 | . . 1 . Indirectly . | . . . . Trap Hack Attempts . | . . . . Triggered . | . . . . Disarmed . | . . . . Reprogrammed . | . . . . Reused . | . . . . Traps Extracted . | . . . . Installed . | . . . . Triggered . | . . . . Exploded 3 | . . . 3 Machines | -11 -10 -10 -10 ---------- Run | Jun Mat Min Exi Machines Disabled 2 | . . . 2 Max in Single Turn 1 | . . . 1 Machines Repaired . | . . . . Machines Sabotaged . | . . . . Overloaded Fab Kills . | . . . . Hacking | -11 -10 -10 -10 --------- Run | Jun Mat Min Exi Machines Accessed 9 | . 5 2 2 Terminals 5 | . 4 1 . Fabricators . | . . . . Repair Stations . | . . . . Recycling Units 1 | . 1 . . Scanalyzers . | . . . . Garrison Access . | . . . . Total Hacks 23 | . 17 4 2 Successful 14 | . 9 3 2 Failed 7 | . 7 . . Catastrophic 1 | . 1 . . Database Lockouts 2 | . 1 1 . Manual 16 | . 13 2 1 Terminals 18 | . 15 3 . Fabricators . | . . . . Repair Stations . | . . . . Recycling Units 2 | . 2 . . Scanalyzers . | . . . . Garrison Access . | . . . . Terminal Hacks 9 | . 4 3 2 Record 1 | . . . 1 Robot Analysis 2 | . 1 1 . Prototype ID Bank 1 | . 1 . . Open Door 1 | . . 1 . Branch Access Points 1 | . 1 . . Registered Components 1 | . 1 . . Zone Layout 1 | . . 1 . EX-Prototype ID Bank 1 | . . . 1 Fabricator Hacks . | . . . . Repair Station Hacks . | . . . . Recycling Unit Hacks 1 | . 1 . . Report Inventory 1 | . 1 . . Scanalyzer . | . . . . Garrison Access Hacks . | . . . . Unauthorized Hacks 4 | . 4 . . Terminals 3 | . 3 . . Track 1 | . 1 . . Botnet 1 | . 1 . . Operators 1 | . 1 . . Fabricators . | . . . . Repair Stations . | . . . . Recycling Units 1 | . 1 . . Tunnel 1 | . 1 . . Scanalyzers . | . . . . Garrison Access . | . . . . Data Cores Recovered 1 | . 1 . . Used 1 | . 1 . . Hacking Detections 4 | . 3 1 . Full Trace Events . | . . . . Feedback Events . | . . . . Feedback Blocked . | . . . . Robot Schematics Acquired . | . . . . Robots Built . | . . . . Authchips . | . . . . Time . | . . . . Total Robot Build Rating . | . . . . Part Schematics Acquired . | . . . . Parts Built . | . . . . Authchips . | . . . . Time . | . . . . Total Part Build Rating . | . . . . Parts Repaired . | . . . . Time . | . . . . Parts Recycled . | . . . . Recycled Matter . | . . . . Retrieved Matter . | . . . . Retrieved Components . | . . . . Parts Scanalyzed . | . . . . Part Schematics Acquired . | . . . . Parts Damaged . | . . . . Bothacking | -11 -10 -10 -10 ------------ Run | Jun Mat Min Exi Used RIF Installer . | . . . . Robots Hacked . | . . . . Non-combat . | . . . . Combat . | . . . . Robot Hacks Applied . | . . . . Relay Couplers Released . | . . . . Fabnet Peak Effective % . | . . . . Robots Rewired . | . . . . Allies Hacked . | . . . . Hacks Repelled . | . . . . Allies | -11 -10 -10 -10 -------- Run | Jun Mat Min Exi Total Allies 3 | . . 3 . Largest Group 3 | . . 3 . Highest-Rated Group 77 | . . 77 . Highest-Rated Ally 31 | . . 31 . Total Orders . | . . . . Ally Attacks 4 | . . 4 . Total Damage 27 | . . 27 . Kills 1 | . . 1 . Allies Corrupted . | . . . . Allies Melted . | . . . . Intel | -11 -10 -10 -10 ------- Run | Jun Mat Min Exi Robot Analysis Total 2 | . 1 1 . Derelict Logs Recovered 2 | . . 2 . Drone Launches . | . . . . Drone Recoveries . | . . . . Exploration | -11 -10 -10 -10 ------------- Run | Jun Mat Min Exi Turns Passed 3249 | . 1543 950 756 Spaces Moved 1703 | 1 764 369 569 Core 257 | . . . 257 Treads 1116 | . 435 369 312 Legs 330 | 1 329 . . Wheels . | . . . . Hover . | . . . . Flight . | . . . . Fastest Speed 50 | 120 120 160 50 Average Speed 143 | 120 158 161 111 Slowest Speed 480 | 120 260 240 480 Overloaded Moves . | . . . . Propulsion Burnouts . | . . . . Robots Hopped . | . . . . Cave-ins Triggered . | . . . . Exploration Rate (%) 56 | 2 79 79 67 Regions Visited 3 Branch Regions 2 Pre-discovered Areas 3 | . 1 1 1 Known Exits Taken 1 | . 1 . . Unknown Exits Taken 2 | 1 . 1 . Scrap Searched 1 | . . 1 . Spaces Dug 1 | . . . 1 Terrain Destroyed 1 | . . . 1 Melee 1 | . . . 1 Projectile . | . . . . AOE . | . . . . Terrain Rammed . | . . . . Walls Destroyed . | . . . . Machines Disabled . | . . . . Actions | -11 -10 -10 -10 --------- Run | Jun Mat Min Exi Total 2291 | . 942 679 670 Wait 350 | . 49 268 33 Move 1700 | . 763 368 569 Hop . | . . . . Pick Up 34 | . 13 5 16 Fast Attach 8 | . 4 1 3 Attach 7 | . 2 2 3 Detach 1 | . . . 1 Swap 9 | . 6 2 1 Drop 37 | . 8 5 24 Fire 80 | . 74 6 . Melee 38 | . . 19 19 Ram . | . . . . Kick 12 | . 12 . . Crush 15 | . 11 3 1 Escape Stasis . | . . . . Rewire . | . . . . Trap . | . . . . Miscellaneous . | . . . . Route ------- -11/Junkyard -10/Materials (discovered 3 exits: [*Mat x2] / *Min) -10/Mines (discovered 2 exits: [*Mat] / *Exi) -10/Exiles History --------- Turn | Location | Event 1 | -11/Junkyard | Discovered new exit (range 0) 1 | -11/Junkyard | Entered Materials 211 | -10/Materials | Discovered new exit (range 5) 232 | -10/Materials | Identified exit to Mines 232 | -10/Materials | Central database locked down 306 | -10/Materials | Build established: Mutant 386 | -10/Materials | Discovered new exit (range 7) 721 | -10/Materials | Core integrity fell below 50% 726 | -10/Materials | Lost 3 parts (1n1u1w) 1221 | -10/Materials | Discovered new exit (range 16) 1544 | -10/Materials | Entered Mines 1556 | -10/Mines | Met a Derelict bent on vengeance 1569 | -10/Mines | Central database locked down 1703 | -10/Mines | Learned 2 Materials zone layouts 1922 | -10/Mines | Received a Mining Laser from a helpful Derelict 1963 | -10/Mines | Met a Derelict who couldn't figure out how to use a Trap Extractor 2303 | -10/Mines | A weapon hastily lodged in a ceiling crevice suddenly fell to the ground 2350 | -10/Mines | Excavation squad dispatched 2350 | -10/Mines | A large section of the Mines collapsed 2424 | -10/Mines | Discovered new exit (range 5) 2486 | -10/Mines | Deemed a non-threat by the Exiles lab entrance 2486 | -10/Mines | Discovered new exit (range 5) 2494 | -10/Mines | Entered Exiles 2546 | -10/Exiles | Met 8R-AWN 2573 | -10/Exiles | Met EX-HEX 2800 | -10/Exiles | Met EX-BIN 2817 | -10/Exiles | Aligned with FarCom system 2819 | -10/Exiles | Given EX-Vault access code 2856 | -10/Exiles | Opened EX-Vault 2894 | -10/Exiles | Warned to stay clear of 0b10 Research branches 2947 | -10/Exiles | Learned location of Zion (-6) 3053 | -10/Exiles | Met EX-DEC 3137 | -10/Exiles | Attacked by the Exiles 3233 | -10/Exiles | Core integrity fell below 20% 3250 | -10/Exiles | Destroyed by 8R-AWN with 8R-AWN's Boregun Last Messages --------------- 03232_ Penetrated by HV Slug. 03232_ HV Slug penetrates Earth. 03232_ Penetrated by HV Slug. 03232_ HV Slug penetrates Wall. 03234_ Penetrated by HV Slug. 03234_ HV Slug penetrates Wall. 03234_ Penetrated by HV Slug. 03234_ HV Slug penetrates Wall. 03236_ Penetrated by HV Slug. 03236_ HV Slug penetrates Wall. 03239_ Penetrated by HV Slug. 03239_ HV Slug penetrates Wall. 03239_ Penetrated by HV Slug. 03239_ HV Slug penetrates Wall. 03241_ Penetrated by HV Slug. 03241_ HV Slug penetrates Wall. 03241_ Penetrated by HV Slug. 03241_ HV Slug penetrates Wall. 03243_ Wall collapses. 03243_ Penetrated by HV Slug. Map ----- +----------------------------------------------------+ | ?????????????????????????????????????????????????? | | ?????????????????????????????????????????????????? | | ?????????????????????????????????????????????????? | | ?????????????????????????????????????????????????? | | ?????????????????????????????????????????????????? | | ?????????????????????????????????????????????????? | | ?????????????????????????????????????????????????? | | ?????????????????????????????????????????????????? | | ?????????????????????????????????????????????????? | | ???????????????????????????????????????????????### | | ???????????????????????????????????????????????""" | | ??????????????????????????????????????????????"""" | | ?????????????????????????????????????????????#""X" | | ?????????????????????????????????????????????#" | | ?????????????????????????????????????????????#" | | ?????????????????????????????????????????????#"""" | | ??????????????????????????????????????????????#"## | | ?????????????????????????????????????????????????? | | ?????????????????????????????????????????????????? | | ?????????????????????????????????????????????????? | | ????????????????????#######??????????????????????? | | ?????? ######???????#!!! "#??????????????????????? | | ?????? #""#??????# [* "#??????????????????????? | | ?????? ??????#| /"#??????????????????????? | | ????? #????##=!!"g#????????????####??????? | | ????? #####"! %%@#???????????? """?????? | | ?????# ##"![ =#????????????" """#????? | | ??????# #"" ! #;#???????????"" #????? | | ?????????# # #??????????#"" #????? | | ???????????## ;;#??????????#"" "#????? | | ????????????### ; ??????????? ""?????? | | ??????########" %;##???????????" "??????? | | ??????# !!""""" ##??????????# #??????? | | ??????#! ###" ######???### ###?#### | | ??????#! "#?##" """#####X# #"###""" | | ??????#! ##??#" * """""" | | ??????# !""""" ###???#"# "" """ | | ??????##########?????#### " " | | ????????????????????????#;# * | | ????????????????????????? ### | | ????????????????????????? ??## | | ?????????????????????????????## | | ??????????????????????????????##" | | ???????????????????????????????#"" | | ??????????????????????????????##" | | ??????????????????????????????#"" ""# | | ??????????????????????????????#""" """## | | ?????????????????????????????#""" """##? | | ?????????????????????????????#""" ""#?? | | ?????????????????????????????#"" #### | +----------------------------------------------------+ Best States ------------- Heat Dissipation 35 Energy Generation 15 Energy Capacity 265 Matter Stores 300 Matter Capacity 300 Sight Range 16 Terrain Scan Density 10 Evasion (%) 55 Targeting Accuracy 5 Recoil Reduction 2 Item Schematics ----------------- None Robot Schematics ------------------ None Fabricated ------------ Nothing Alien Tech Used ----------------- None Achievements -------------- None Challenges ------------ None Game ------ Seed MolecularMissileShield Manual? 0 Play Time 00:20:21 Cumulative 393.3 hours Start 2023.04.11 @ 08:06:59 End 2023.04.11 @ 08:35:23 Sessions 1 Manual Loads 0 Difficulty Rogue Special Mode None Game No. 435 Rogue 435 Adventurer 0 Explorer 0 Win Type - Total 12 Types 8/0/3/1/0/0/0/0/0 Lore% 81 Gallery% 89 Achievement% 79 Wizard Run 0 Options --------- ASCII 0 Keyboard 0 Movement Numpad Keybinds 0 Fullscreen 1 Font 18/Terminus Map View 76x50 Tactical HUD 1 Map Filters NONE Filters NONE Steam 1 RUN: 8c8a1ccb-649e-4512-829b-58cdf71a8f26